[Event "*** SCC Grand Prix: Titled Tuesday Blitz"]
[Site "Chess.com"]
[Date "2020.07.07"]
[Round "7"]
[White "marabu44"]
[Black "if_name_main_a"]
[Result "0-1"]
[WhiteElo "2238"]
[BlackElo "2389"]
[TimeControl "180+1"]
[EndTime "11:19:16 PDT"]
[Termination "if_name_main_a won by resignation"]

1. Nf3 {[%clk 0:03:00.9]} 1... c5 {[%clk 0:02:59.9]} 2. b3 {[%clk 0:02:58.7]}
2... Nc6 {[%clk 0:02:59.5]} 3. Bb2 {[%clk 0:02:58.7]} 3... Nf6 {[%clk 0:03:00]}
4. d3 {[%clk 0:02:53.5]} 4... d5 {[%clk 0:02:57.4]} 5. Nbd2 {[%clk 0:02:51.9]}
5... Qc7 {[%clk 0:02:57.6]} 6. e4 {[%clk 0:02:51.6]} 6... e5 {[%clk 0:02:56.6]}
7. g3 {[%clk 0:02:40.3]} 7... d4 {[%clk 0:02:44.1]} 8. Bg2 {[%clk 0:02:37.1]}
8... h6 {[%clk 0:02:40.7]} 9. a4 {[%clk 0:02:36]} 9... Be6 {[%clk 0:02:37.4]}
10. O-O {[%clk 0:02:32.2]} 10... Be7 {[%clk 0:02:37.8]} 11. Nc4 {[%clk
0:02:23.2]} 11... g5 {[%clk 0:02:36.2]} 12. h3 {[%clk 0:02:15]} 12... Nd7 {[%clk
0:02:30.1]} 13. Nh2 {[%clk 0:01:59.8]} 13... h5 {[%clk 0:02:29.1]} 14. Bc1
{[%clk 0:01:52.2]} 14... O-O-O {[%clk 0:02:28.4]} 15. Bd2 {[%clk 0:01:46.7]}
15... Rdg8 {[%clk 0:02:28.3]} 16. Kh1 {[%clk 0:01:43]} 16... Nf8 {[%clk
0:02:25.1]} 17. Rg1 {[%clk 0:01:41.6]} 17... Qd7 {[%clk 0:02:24.8]} 18. Qf1
{[%clk 0:01:40.1]} 18... b6 {[%clk 0:02:00.7]} 19. f4 {[%clk 0:01:28.2]} 19...
gxf4 {[%clk 0:01:59.9]} 20. gxf4 {[%clk 0:01:28]} 20... exf4 {[%clk 0:02:00.4]}
21. Bxf4 {[%clk 0:01:27.6]} 21... Ng6 {[%clk 0:01:59.8]} 22. Bg3 {[%clk
0:01:09.3]} 22... h4 {[%clk 0:01:35.7]} 23. Be1 {[%clk 0:01:03.9]} 23... Nge5
{[%clk 0:01:29.5]} 24. Nxe5 {[%clk 0:01:02.7]} 24... Nxe5 {[%clk 0:01:30.4]} 25.
Bd2 {[%clk 0:00:58.8]} 25... Bd6 {[%clk 0:01:25.3]} 26. Bf4 {[%clk 0:00:56.6]}
26... Qc7 {[%clk 0:01:24.3]} 27. Nf3 {[%clk 0:00:47.5]} 27... Nxf3 {[%clk
0:01:12]} 28. Bxd6 {[%clk 0:00:46.9]} 28... Qxd6 {[%clk 0:01:12]} 29. Qxf3
{[%clk 0:00:42.9]} 29... Rg3 {[%clk 0:01:12.4]} 30. Qf6 {[%clk 0:00:38.6]} 30...
Qf8 {[%clk 0:01:06.1]} 31. Raf1 {[%clk 0:00:20.7]} 31... Rh6 {[%clk 0:00:52.2]}
32. Qf4 {[%clk 0:00:19.9]} 32... Bxh3 {[%clk 0:00:40.2]} 33. Rf3 {[%clk
0:00:17]} 33... Bxg2+ {[%clk 0:00:37.7]} 34. Rxg2 {[%clk 0:00:17.1]} 34... Rxg2
{[%clk 0:00:37.1]} 35. Kxg2 {[%clk 0:00:17.2]} 35... Qg7+ {[%clk 0:00:35.3]} 36.
Kf2 {[%clk 0:00:16.9]} 36... h3 {[%clk 0:00:32.6]} 37. Rxh3 {[%clk 0:00:15]}
37... Rf6 {[%clk 0:00:29.6]} 38. Rf3 {[%clk 0:00:12.4]} 38... Rxf4 {[%clk
0:00:29.7]} 39. Rxf4 {[%clk 0:00:13.3]} 39... Kd7 {[%clk 0:00:29.6]} 40. Rf5
{[%clk 0:00:13.3]} 40... Ke6 {[%clk 0:00:27.7]} 41. Rf3 {[%clk 0:00:13.2]} 41...
Qh6 {[%clk 0:00:27.9]} 42. Ke2 {[%clk 0:00:13.2]} 42... Qc1 {[%clk 0:00:27.9]}
43. Rf2 {[%clk 0:00:13.4]} 43... Qxc2+ {[%clk 0:00:28.1]} 44. Kf3 {[%clk
0:00:14.3]} 44... Qxd3+ {[%clk 0:00:28.2]} 45. Kf4 {[%clk 0:00:14.5]} 45... Qe3+
{[%clk 0:00:27.3]} 0-1

[Event "*** SCC Grand Prix: Titled Tuesday Blitz"]
[Site "Chess.com"]
[Date "2020.07.07"]
[Round "7"]
[White "sotochess"]
[Black "Alkhoori90"]
[Result "0-1"]
[WhiteElo "2431"]
[BlackElo "2270"]
[TimeControl "180+1"]
[EndTime "11:19:17 PDT"]
[Termination "Alkhoori90 won by checkmate"]

1. e4 {[%clk 0:03:00]} 1... d5 {[%clk 0:03:00.2]} 2. exd5 {[%clk 0:02:58.1]}
2... Qxd5 {[%clk 0:03:01.1]} 3. Nc3 {[%clk 0:02:57.5]} 3... Qd6 {[%clk 0:03:02]}
4. Nf3 {[%clk 0:02:57.1]} 4... Nf6 {[%clk 0:03:02.6]} 5. Be2 {[%clk 0:02:57.3]}
5... Bg4 {[%clk 0:03:02.9]} 6. h3 {[%clk 0:02:56.2]} 6... Bh5 {[%clk 0:03:02.4]}
7. O-O {[%clk 0:02:55.8]} 7... c6 {[%clk 0:03:02.7]} 8. Re1 {[%clk 0:02:55.2]}
8... Nbd7 {[%clk 0:03:03.1]} 9. d3 {[%clk 0:02:54.5]} 9... e6 {[%clk 0:03:03.6]}
10. Ng5 {[%clk 0:02:54.4]} 10... Bxe2 {[%clk 0:03:01.6]} 11. Qxe2 {[%clk
0:02:54.1]} 11... Be7 {[%clk 0:03:02]} 12. Bd2 {[%clk 0:02:50.4]} 12... O-O
{[%clk 0:02:59.6]} 13. Rad1 {[%clk 0:02:46.7]} 13... Qc7 {[%clk 0:02:53.6]} 14.
Qf3 {[%clk 0:02:30.4]} 14... Nd5 {[%clk 0:02:47.7]} 15. Qh5 {[%clk 0:02:15.5]}
15... Bxg5 {[%clk 0:02:41]} 16. Bxg5 {[%clk 0:02:10.3]} 16... Nxc3 {[%clk
0:02:36.5]} 17. bxc3 {[%clk 0:02:09.9]} 17... Qa5 {[%clk 0:02:35.7]} 18. Qg4
{[%clk 0:02:09.5]} 18... Qxc3 {[%clk 0:02:28.1]} 19. Re2 {[%clk 0:02:09]} 19...
Nf6 {[%clk 0:02:08.4]} 20. Qh4 {[%clk 0:02:07.4]} 20... h6 {[%clk 0:01:52.8]}
21. Be3 {[%clk 0:02:01.6]} 21... Rad8 {[%clk 0:01:48.3]} 22. Rb1 {[%clk
0:01:57.7]} 22... b6 {[%clk 0:01:46.6]} 23. Qa4 {[%clk 0:01:56.4]} 23... Rd7
{[%clk 0:01:36.2]} 24. Rb3 {[%clk 0:01:38.2]} 24... Qa1+ {[%clk 0:01:35.4]} 25.
Kh2 {[%clk 0:01:36.7]} 25... b5 {[%clk 0:01:24.6]} 26. Qa6 {[%clk 0:01:32.1]}
26... Qe5+ {[%clk 0:01:14.4]} 27. f4 {[%clk 0:01:25.3]} 27... Qd5 {[%clk
0:01:11.3]} 28. a4 {[%clk 0:01:21.9]} 28... bxa4 {[%clk 0:01:03.5]} 29. Qxa4
{[%clk 0:01:21.3]} 29... Qh5 {[%clk 0:01:00]} 30. Re1 {[%clk 0:01:13.9]} 30...
Ng4+ {[%clk 0:00:59.2]} 31. Kg1 {[%clk 0:01:11.5]} 31... Nxe3 {[%clk 0:00:53.3]}
32. Rxe3 {[%clk 0:01:11.5]} 32... Qd1+ {[%clk 0:00:53.5]} 33. Kh2 {[%clk
0:01:11.1]} 33... Qxc2 {[%clk 0:00:53.4]} 34. Rg3 {[%clk 0:01:10.4]} 34... Rfd8
{[%clk 0:00:44.5]} 35. Qb4 {[%clk 0:01:05.9]} 35... Rxd3 {[%clk 0:00:36.5]} 36.
Rb2 {[%clk 0:01:02.2]} 36... Qc1 {[%clk 0:00:31.4]} 37. Rb1 {[%clk 0:01:01.9]}
37... Qc2 {[%clk 0:00:29.4]} 38. Rb2 {[%clk 0:01:01.5]} 38... Qd1 {[%clk
0:00:27]} 39. Rb1 {[%clk 0:00:54.7]} 39... Qe2 {[%clk 0:00:26.9]} 40. Rb2 {[%clk
0:00:54.4]} 40... Qf1 {[%clk 0:00:24.8]} 41. Qe7 {[%clk 0:00:50.7]} 41... R3d7
{[%clk 0:00:21.1]} 42. Qh4 {[%clk 0:00:50.1]} 42... Rd1 {[%clk 0:00:20.8]} 43.
Rf3 {[%clk 0:00:50.1]} 43... Qh1+ {[%clk 0:00:20.6]} 44. Kg3 {[%clk 0:00:50.2]}
44... R1d3 {[%clk 0:00:18.9]} 45. Rf2 {[%clk 0:00:49.8]} 45... Rxf3+ {[%clk
0:00:18.8]} 46. Kxf3 {[%clk 0:00:49.9]} 46... Rd3+ {[%clk 0:00:17.5]} 47. Ke4
{[%clk 0:00:49.7]} 47... Qd1 {[%clk 0:00:17.2]} 48. Rf3 {[%clk 0:00:47.7]} 48...
Rd4+ {[%clk 0:00:16.6]} 49. Ke3 {[%clk 0:00:48]} 49... Qd2# {[%clk 0:00:16.4]}
0-1

[Event "*** SCC Grand Prix: Titled Tuesday Blitz"]
[Site "Chess.com"]
[Date "2020.07.07"]
[Round "7"]
[White "IngOscarArdila"]
[Black "MF1966Idrisov"]
[Result "0-1"]
[WhiteElo "2174"]
[BlackElo "2324"]
[TimeControl "180+1"]
[EndTime "11:19:17 PDT"]
[Termination "MF1966Idrisov won by resignation"]

1. d4 {[%clk 0:03:00.9]} 1... d5 {[%clk 0:02:56.8]} 2. Nf3 {[%clk 0:02:59.4]}
2... e6 {[%clk 0:02:56.1]} 3. c4 {[%clk 0:02:59.4]} 3... c6 {[%clk 0:02:54.4]}
4. cxd5 {[%clk 0:02:59.1]} 4... exd5 {[%clk 0:02:53.8]} 5. Nc3 {[%clk
0:02:58.3]} 5... Nf6 {[%clk 0:02:53.8]} 6. Bg5 {[%clk 0:02:58.1]} 6... Be7
{[%clk 0:02:52.5]} 7. e3 {[%clk 0:02:58.1]} 7... O-O {[%clk 0:02:52.4]} 8. h3
{[%clk 0:02:56.5]} 8... Bf5 {[%clk 0:02:51]} 9. Bd3 {[%clk 0:02:54.5]} 9... Ne4
{[%clk 0:02:51.1]} 10. Bxe7 {[%clk 0:02:53.3]} 10... Qxe7 {[%clk 0:02:49.5]} 11.
O-O {[%clk 0:02:52.9]} 11... Nd7 {[%clk 0:02:48.4]} 12. Qb3 {[%clk 0:02:49.8]}
12... Rab8 {[%clk 0:02:46.8]} 13. Rac1 {[%clk 0:02:47.9]} 13... g5 {[%clk
0:02:34.2]} 14. Qd1 {[%clk 0:02:39.7]} 14... h5 {[%clk 0:02:29.5]} 15. Be2
{[%clk 0:02:39]} 15... g4 {[%clk 0:02:26.2]} 16. hxg4 {[%clk 0:02:38.8]} 16...
hxg4 {[%clk 0:02:26.3]} 17. Nd2 {[%clk 0:02:37.9]} 17... Qh4 {[%clk 0:02:18.4]}
18. Ncxe4 {[%clk 0:02:25.8]} 18... dxe4 {[%clk 0:02:17.9]} 19. g3 {[%clk
0:02:24.4]} 19... Qh6 {[%clk 0:02:00.9]} 20. Bxg4 {[%clk 0:02:19.9]} 20... Qe6
{[%clk 0:01:56.3]} 21. Bxf5 {[%clk 0:02:18.4]} 21... Qxf5 {[%clk 0:01:56.5]} 22.
Kg2 {[%clk 0:02:15]} 22... Kg7 {[%clk 0:01:55.5]} 23. Rh1 {[%clk 0:02:14.3]}
23... Rh8 {[%clk 0:01:55.5]} 24. Qc2 {[%clk 0:02:05]} 24... Nf6 {[%clk
0:01:54.3]} 25. Qc5 {[%clk 0:01:50.3]} 25... Nd5 {[%clk 0:01:38.5]} 26. Qc2
{[%clk 0:01:26.6]} 26... Nf6 {[%clk 0:01:33.8]} 27. Rcf1 {[%clk 0:01:18.6]}
27... Rbe8 {[%clk 0:01:24.7]} 28. Qd1 {[%clk 0:01:17.5]} 28... Ng4 {[%clk
0:01:20.1]} 29. Qe2 {[%clk 0:01:00.1]} 29... a6 {[%clk 0:01:06.2]} 30. Nb1
{[%clk 0:00:58]} 30... Re6 {[%clk 0:00:51.2]} 31. Rxh8 {[%clk 0:00:55.8]} 31...
Kxh8 {[%clk 0:00:50.3]} 32. Rh1+ {[%clk 0:00:53.4]} 32... Rh6 {[%clk 0:00:45]}
33. Rxh6+ {[%clk 0:00:51.8]} 33... Nxh6 {[%clk 0:00:44.9]} 34. Nc3 {[%clk
0:00:30.5]} 34... Ng4 {[%clk 0:00:44.5]} 35. f3 {[%clk 0:00:19.7]} 35... exf3+
{[%clk 0:00:37.2]} 36. Qxf3 {[%clk 0:00:19.7]} 36... Qh5 {[%clk 0:00:36.1]} 37.
Ne2 {[%clk 0:00:07]} 37... f5 {[%clk 0:00:31.5]} 38. Nf4 {[%clk 0:00:06.5]}
38... Qh2+ {[%clk 0:00:29.1]} 39. Kf1 {[%clk 0:00:06.7]} 39... Qxb2 {[%clk
0:00:28.6]} 40. Ne2 {[%clk 0:00:05.2]} 40... Nh2+ {[%clk 0:00:27.8]} 0-1

[Event "*** SCC Grand Prix: Titled Tuesday Blitz"]
[Site "Chess.com"]
[Date "2020.07.07"]
[Round "7"]
[White "juniortay"]
[Black "TioCridineno"]
[Result "1-0"]
[WhiteElo "2368"]
[BlackElo "2122"]
[TimeControl "180+1"]
[EndTime "11:19:18 PDT"]
[Termination "juniortay won by resignation"]

1. e4 {[%clk 0:03:00]} 1... c5 {[%clk 0:02:59.9]} 2. Nc3 {[%clk 0:02:59.3]} 2...
a6 {[%clk 0:02:59.8]} 3. g3 {[%clk 0:02:59.3]} 3... b5 {[%clk 0:02:59.9]} 4. Bg2
{[%clk 0:02:59.3]} 4... Bb7 {[%clk 0:03:00.4]} 5. d3 {[%clk 0:02:59.5]} 5... e6
{[%clk 0:03:00.3]} 6. f4 {[%clk 0:02:59]} 6... d5 {[%clk 0:03:00.2]} 7. e5
{[%clk 0:02:55.7]} 7... g6 {[%clk 0:02:59.1]} 8. Nge2 {[%clk 0:02:55.1]} 8... h5
{[%clk 0:02:59.3]} 9. h3 {[%clk 0:02:54.2]} 9... Nh6 {[%clk 0:02:59.5]} 10. O-O
{[%clk 0:02:53]} 10... Be7 {[%clk 0:02:59.8]} 11. Be3 {[%clk 0:02:43.4]} 11...
Nc6 {[%clk 0:02:59.5]} 12. Bf2 {[%clk 0:02:42.8]} 12... Nf5 {[%clk 0:02:40.2]}
13. Qd2 {[%clk 0:02:40.8]} 13... Qc7 {[%clk 0:02:38.2]} 14. Nd1 {[%clk
0:02:36.2]} 14... d4 {[%clk 0:02:35.6]} 15. a4 {[%clk 0:02:25.1]} 15... b4
{[%clk 0:02:34.2]} 16. b3 {[%clk 0:02:24.4]} 16... Bd8 {[%clk 0:02:15.1]} 17.
Nb2 {[%clk 0:02:22.5]} 17... Nce7 {[%clk 0:02:14.5]} 18. Nc4 {[%clk 0:02:21.3]}
18... Nd5 {[%clk 0:02:12.3]} 19. Be4 {[%clk 0:02:17.6]} 19... Be7 {[%clk
0:02:10.8]} 20. Kh2 {[%clk 0:02:00.9]} 20... Kd7 {[%clk 0:01:55]} 21. Ng1 {[%clk
0:02:00.2]} 21... Rag8 {[%clk 0:01:53.4]} 22. Nf3 {[%clk 0:01:59.7]} 22... Nc3
{[%clk 0:01:40.1]} 23. Bxb7 {[%clk 0:01:47.8]} 23... Qxb7 {[%clk 0:01:39.8]} 24.
Ng5 {[%clk 0:01:43.8]} 24... Rg7 {[%clk 0:01:16.9]} 25. Rae1 {[%clk 0:01:40.5]}
25... Nd5 {[%clk 0:01:14.5]} 26. Ne4 {[%clk 0:01:36.1]} 26... Rhg8 {[%clk
0:01:01.3]} 27. Bg1 {[%clk 0:01:19]} 27... g5 {[%clk 0:00:59.2]} 28. fxg5 {[%clk
0:01:11.6]} 28... Bxg5 {[%clk 0:00:59.1]} 29. Nxc5+ {[%clk 0:01:11.3]} 29... Kc6
{[%clk 0:00:56.9]} 30. Na5+ {[%clk 0:00:48.7]} 30... Kxc5 {[%clk 0:00:56.6]} 31.
Nxb7+ {[%clk 0:00:48]} 31... Kb6 {[%clk 0:00:56.9]} 32. Qg2 {[%clk 0:00:43.3]}
32... Kxb7 {[%clk 0:00:55.6]} 33. Rxf5 {[%clk 0:00:43.6]} 33... Be3 {[%clk
0:00:49.9]} 34. Bxe3 {[%clk 0:00:38.5]} 34... dxe3 {[%clk 0:00:50.1]} 35. Rf3
{[%clk 0:00:38.4]} 35... Kc6 {[%clk 0:00:21.1]} 36. Rfxe3 {[%clk 0:00:37.8]}
36... Rg5 {[%clk 0:00:18.8]} 37. Rf3 {[%clk 0:00:37.2]} 37... R8g7 {[%clk
0:00:18.2]} 38. Ref1 {[%clk 0:00:36.3]} 38... Rxe5 {[%clk 0:00:16.3]} 39. Rxf7
{[%clk 0:00:35.6]} 39... Rg6 {[%clk 0:00:14.6]} 40. R7f2 {[%clk 0:00:34.2]}
40... a5 {[%clk 0:00:13.3]} 41. Qf3 {[%clk 0:00:29.7]} 1-0

[Event "*** SCC Grand Prix: Titled Tuesday Blitz"]
[Site "Chess.com"]
[Date "2020.07.07"]
[Round "7"]
[White "Chernobay_Artem"]
[Black "Artur0208"]
[Result "0-1"]
[WhiteElo "2619"]
[BlackElo "2787"]
[TimeControl "180+1"]
[EndTime "11:19:20 PDT"]
[Termination "Artur0208 won by resignation"]

1. d4 {[%clk 0:03:00.9]} 1... d5 {[%clk 0:02:59.8]} 2. c4 {[%clk 0:03:01.3]}
2... e6 {[%clk 0:02:58.9]} 3. Nc3 {[%clk 0:03:01.1]} 3... Be7 {[%clk 0:02:55.9]}
4. cxd5 {[%clk 0:02:59.7]} 4... exd5 {[%clk 0:02:56.8]} 5. Nf3 {[%clk
0:02:59.7]} 5... Nf6 {[%clk 0:02:53.8]} 6. Bg5 {[%clk 0:02:58.7]} 6... h6 {[%clk
0:02:37.5]} 7. Bh4 {[%clk 0:02:54.1]} 7... c6 {[%clk 0:02:29.1]} 8. Qc2 {[%clk
0:02:51.1]} 8... O-O {[%clk 0:02:17.5]} 9. e3 {[%clk 0:02:50.2]} 9... Re8 {[%clk
0:02:14.8]} 10. Bd3 {[%clk 0:02:46.9]} 10... Ne4 {[%clk 0:02:10.8]} 11. Bxe7
{[%clk 0:02:35.6]} 11... Qxe7 {[%clk 0:02:11.7]} 12. Bxe4 {[%clk 0:02:35.9]}
12... dxe4 {[%clk 0:02:12.6]} 13. Nd2 {[%clk 0:02:36.3]} 13... Bf5 {[%clk
0:02:11]} 14. O-O {[%clk 0:02:26.4]} 14... Nd7 {[%clk 0:02:05.9]} 15. b4 {[%clk
0:02:05.5]} 15... Nf6 {[%clk 0:02:00.8]} 16. Rac1 {[%clk 0:01:55]} 16... Qxb4
{[%clk 0:01:54.6]} 17. Na4 {[%clk 0:01:46.7]} 17... Qe7 {[%clk 0:01:53.1]} 18.
Qb3 {[%clk 0:01:35.4]} 18... Nd5 {[%clk 0:01:49.5]} 19. Nc5 {[%clk 0:01:34.2]}
19... b6 {[%clk 0:01:46.3]} 20. Na4 {[%clk 0:01:30.7]} 20... Rac8 {[%clk
0:01:43.5]} 21. Nb2 {[%clk 0:01:28.8]} 21... Qg5 {[%clk 0:01:41.7]} 22. Kh1
{[%clk 0:01:25.1]} 22... Re6 {[%clk 0:01:41.8]} 23. Nbc4 {[%clk 0:01:19.5]}
23... Rg6 {[%clk 0:01:40.2]} 24. Rg1 {[%clk 0:01:19.1]} 24... Qh4 {[%clk
0:01:32.2]} 25. Ne5 {[%clk 0:01:13.8]} 25... Rg5 {[%clk 0:00:47.9]} 26. Rxc6
{[%clk 0:01:04]} 26... Rxc6 {[%clk 0:00:47.1]} 27. Qxd5 {[%clk 0:01:04]} 27...
Rf6 {[%clk 0:00:44.7]} 28. Nf1 {[%clk 0:00:51.5]} 28... Qxf2 {[%clk 0:00:42.1]}
29. a4 {[%clk 0:00:43.7]} 29... Bg6 {[%clk 0:00:18.7]} 30. Qd8+ {[%clk
0:00:36.1]} 30... Kh7 {[%clk 0:00:18.6]} 31. Nd7 {[%clk 0:00:36.5]} 31... h5
{[%clk 0:00:11]} 32. Nxf6+ {[%clk 0:00:33.2]} 32... gxf6 {[%clk 0:00:11.9]} 33.
Ng3 {[%clk 0:00:28.1]} 33... h4 {[%clk 0:00:10.7]} 34. Nf1 {[%clk 0:00:10.3]}
34... Rxg2 {[%clk 0:00:10]} 35. Rxg2 {[%clk 0:00:09.9]} 35... Qxf1+ {[%clk
0:00:10.1]} 0-1

[Event "*** SCC Grand Prix: Titled Tuesday Blitz"]
[Site "Chess.com"]
[Date "2020.07.07"]
[Round "7"]
[White "Andrii_Prydun"]
[Black "Aguiar94"]
[Result "0-1"]
[WhiteElo "2396"]
[BlackElo "2525"]
[TimeControl "180+1"]
[EndTime "11:19:20 PDT"]
[Termination "Aguiar94 won by checkmate"]

1. d4 {[%clk 0:03:00.9]} 1... Nf6 {[%clk 0:02:59.5]} 2. Nc3 {[%clk 0:03:00.6]}
2... d5 {[%clk 0:02:59.2]} 3. Bf4 {[%clk 0:03:00.7]} 3... Bf5 {[%clk 0:02:58]}
4. f3 {[%clk 0:02:59.2]} 4... e6 {[%clk 0:02:57.4]} 5. g4 {[%clk 0:02:58.4]}
5... Bg6 {[%clk 0:02:57.3]} 6. h4 {[%clk 0:02:58.3]} 6... h6 {[%clk 0:02:57.8]}
7. e3 {[%clk 0:02:57.2]} 7... a6 {[%clk 0:02:56.6]} 8. h5 {[%clk 0:02:51.8]}
8... Bh7 {[%clk 0:02:56]} 9. Bd3 {[%clk 0:02:52.3]} 9... c5 {[%clk 0:02:54.6]}
10. Nge2 {[%clk 0:02:51.1]} 10... Nc6 {[%clk 0:02:54]} 11. a3 {[%clk 0:02:50.6]}
11... Rc8 {[%clk 0:02:51.4]} 12. Qd2 {[%clk 0:02:41.3]} 12... Bd6 {[%clk
0:02:30.4]} 13. dxc5 {[%clk 0:02:36.4]} 13... Bxc5 {[%clk 0:02:29.5]} 14. Bxh7
{[%clk 0:02:36.4]} 14... Nxh7 {[%clk 0:02:28.9]} 15. O-O-O {[%clk 0:02:36.5]}
15... Ng5 {[%clk 0:02:21.7]} 16. Rhf1 {[%clk 0:02:27.7]} 16... Qe7 {[%clk
0:02:03.5]} 17. Rde1 {[%clk 0:02:16.8]} 17... b5 {[%clk 0:01:48.7]} 18. Kb1
{[%clk 0:02:07]} 18... b4 {[%clk 0:01:45.5]} 19. axb4 {[%clk 0:02:06.9]} 19...
Bxb4 {[%clk 0:01:40.7]} 20. Qd3 {[%clk 0:01:54.3]} 20... Qb7 {[%clk 0:01:38.4]}
21. Kc1 {[%clk 0:00:58.2]} 21... Na5 {[%clk 0:01:37.7]} 22. e4 {[%clk
0:00:50.3]} 22... Nc4 {[%clk 0:00:55.7]} 23. b3 {[%clk 0:00:49.8]} 23... Na3
{[%clk 0:00:49.1]} 24. exd5 {[%clk 0:00:47.4]} 24... O-O {[%clk 0:00:35.6]} 25.
Bxg5 {[%clk 0:00:44.6]} 25... hxg5 {[%clk 0:00:36.5]} 26. dxe6 {[%clk
0:00:44.7]} 26... Rfd8 {[%clk 0:00:33.1]} 27. Qe3 {[%clk 0:00:20.6]} 27... Nb5
{[%clk 0:00:32.6]} 28. Nxb5 {[%clk 0:00:17]} 28... Bd2+ {[%clk 0:00:29]} 29.
Qxd2 {[%clk 0:00:15.8]} 29... Rxd2 {[%clk 0:00:29.4]} 30. Kxd2 {[%clk
0:00:14.8]} 30... Qxb5 {[%clk 0:00:25.4]} 31. Nd4 {[%clk 0:00:10.4]} 31... Qb4+
{[%clk 0:00:25]} 32. Ke3 {[%clk 0:00:07]} 32... Rc3+ {[%clk 0:00:19.7]} 33. Ke4
{[%clk 0:00:07.1]} 33... Qb7+ {[%clk 0:00:20.2]} 34. Kf5 {[%clk 0:00:05.1]}
34... Qd5+ {[%clk 0:00:18.4]} 35. Re5 {[%clk 0:00:04.3]} 35... Qxd4 {[%clk
0:00:17.6]} 36. e7 {[%clk 0:00:04.3]} 36... Qf4# {[%clk 0:00:17.1]} 0-1

[Event "*** SCC Grand Prix: Titled Tuesday Blitz"]
[Site "Chess.com"]
[Date "2020.07.07"]
[Round "7"]
[White "chenxiaoyuer"]
[Black "Harry_Rakkel"]
[Result "1-0"]
[WhiteElo "2425"]
[BlackElo "2545"]
[TimeControl "180+1"]
[EndTime "11:19:21 PDT"]
[Termination "chenxiaoyuer won on time"]

1. e4 {[%clk 0:03:00.9]} 1... c5 {[%clk 0:02:59.8]} 2. Nf3 {[%clk 0:03:00.7]}
2... d6 {[%clk 0:02:59.7]} 3. d4 {[%clk 0:03:00.5]} 3... cxd4 {[%clk 0:02:59]}
4. Nxd4 {[%clk 0:03:01.4]} 4... Nf6 {[%clk 0:02:58.6]} 5. Nc3 {[%clk 0:03:01.3]}
5... a6 {[%clk 0:02:58.5]} 6. Be2 {[%clk 0:03:00.2]} 6... e5 {[%clk 0:02:54.9]}
7. Nb3 {[%clk 0:03:00.1]} 7... Be7 {[%clk 0:02:54.9]} 8. O-O {[%clk 0:03:00.5]}
8... O-O {[%clk 0:02:54.6]} 9. Kh1 {[%clk 0:03:00.9]} 9... b6 {[%clk 0:02:52.7]}
10. Be3 {[%clk 0:02:58.4]} 10... Bb7 {[%clk 0:02:52.2]} 11. f3 {[%clk
0:02:59.3]} 11... b5 {[%clk 0:02:51.4]} 12. a3 {[%clk 0:02:56.8]} 12... Nbd7
{[%clk 0:02:50.1]} 13. Qe1 {[%clk 0:02:56]} 13... Rc8 {[%clk 0:02:40.3]} 14. Qf2
{[%clk 0:02:55.7]} 14... Rc7 {[%clk 0:02:31.8]} 15. Rfd1 {[%clk 0:02:50.3]}
15... Qa8 {[%clk 0:02:30.5]} 16. Na5 {[%clk 0:02:39.5]} 16... Rfc8 {[%clk
0:02:27.9]} 17. Nxb7 {[%clk 0:02:26.7]} 17... Qxb7 {[%clk 0:02:26.3]} 18. g4
{[%clk 0:02:27.6]} 18... Rxc3 {[%clk 0:02:21.6]} 19. bxc3 {[%clk 0:02:26.1]}
19... Rxc3 {[%clk 0:02:21]} 20. Bd3 {[%clk 0:02:20.6]} 20... Nf8 {[%clk
0:02:07.4]} 21. Qd2 {[%clk 0:01:59.8]} 21... Qc6 {[%clk 0:01:58]} 22. Rdb1
{[%clk 0:01:56.2]} 22... h5 {[%clk 0:01:42.5]} 23. h3 {[%clk 0:01:51.1]} 23...
hxg4 {[%clk 0:01:37.7]} 24. hxg4 {[%clk 0:01:52]} 24... Ne6 {[%clk 0:00:54.1]}
25. Rb3 {[%clk 0:01:45.4]} 25... Rxb3 {[%clk 0:00:52.8]} 26. cxb3 {[%clk
0:01:46.3]} 26... d5 {[%clk 0:00:50.8]} 27. Rc1 {[%clk 0:01:38.3]} 27... Qd7
{[%clk 0:00:50.3]} 28. exd5 {[%clk 0:01:32.9]} 28... Nd4 {[%clk 0:00:49]} 29.
Bxd4 {[%clk 0:01:17.9]} 29... exd4 {[%clk 0:00:48.2]} 30. Qf4 {[%clk 0:01:11.1]}
30... g6 {[%clk 0:00:32.9]} 31. Qxd4 {[%clk 0:01:08.6]} 31... Qd6 {[%clk
0:00:21.1]} 32. Rc8+ {[%clk 0:01:02.4]} 32... Kg7 {[%clk 0:00:17.8]} 33. g5
{[%clk 0:01:01.7]} 33... Qg3 {[%clk 0:00:18.3]} 34. gxf6+ {[%clk 0:01:00]} 34...
Bxf6 {[%clk 0:00:19.2]} 35. Qe4 {[%clk 0:00:34.8]} 35... Be5 {[%clk 0:00:15]}
36. Rc2 {[%clk 0:00:31.3]} 36... f5 {[%clk 0:00:07.4]} 37. Qe3 {[%clk
0:00:22.2]} 37... Qh4+ {[%clk 0:00:02.6]} 38. Kg2 {[%clk 0:00:18]} 1-0